[Event "January 9 Early 2024"]
[Site "https://www.chess.com"]
[Date "2024.01.11"]
[Round "9"]
[White "Nowak, Lukasz"]
[Black "Modric, Nesa"]
[Result "1-0"]
[Board "151"]
[TimeControl "180+1"]
[WhiteFideId "1166760"]
[BlackFideId "922579"]
[WhiteElo "2022"]
[BlackElo "2167"]
[WhiteTeam "POL"]
[BlackTeam "SRB"]
[WhiteClock "0:00:01"]
[BlackClock "0:00:01"]

1. c4 {[%clk 0:03:00]}  c6 {[%clk 0:02:57]} 2. d4 {[%clk 0:02:57]}  d5 {[%clk 0:02:57]} 3. cxd5 {[%clk 0:02:57]}  cxd5 {[%clk 0:02:57]} 4. Bf4 {[%clk 0:02:56]}  Nc6 {[%clk 0:02:55]} 5. e3 {[%clk 0:02:56]}  e6 {[%clk 0:02:55]} 6. Nc3 {[%clk 0:02:54]}  Bd6 {[%clk 0:02:55]} 7. Bxd6 {[%clk 0:02:52]}  Qxd6 {[%clk 0:02:54]} 8. f4 {[%clk 0:02:50]}  Nf6 {[%clk 0:02:52]} 9. Nf3 {[%clk 0:02:49]}  O-O {[%clk 0:02:52]} 10. Bd3 {[%clk 0:02:48]}  a6 {[%clk 0:02:51]} 11. O-O {[%clk 0:02:46]}  b5 {[%clk 0:02:51]} 12. Rc1 {[%clk 0:02:44]}  Bb7 {[%clk 0:02:47]} 13. Ne5 {[%clk 0:02:35]}  Rac8 {[%clk 0:02:45]} 14. Qe2 {[%clk 0:02:33]}  Na5 {[%clk 0:02:40]} 15. b3 {[%clk 0:01:56]}  Rc7 {[%clk 0:02:30]} 16. Rc2 {[%clk 0:01:53]}  Rfc8 {[%clk 0:02:29]} 17. Rfc1 {[%clk 0:01:51]}  g6 {[%clk 0:02:29]} 18. Qd2 {[%clk 0:01:44]}  Nc6 {[%clk 0:02:27]} 19. Ne2 {[%clk 0:01:33]}  Ne7 {[%clk 0:01:58]} 20. Rxc7 {[%clk 0:01:19]}  Rxc7 {[%clk 0:01:58]} 21. Rc2 {[%clk 0:01:14]}  Rxc2 {[%clk 0:01:37]} 22. Qxc2 {[%clk 0:01:15]}  Ne4 {[%clk 0:01:20]} 23. Bxe4 {[%clk 0:01:05]}  dxe4 {[%clk 0:01:19]} 24. Qc5 {[%clk 0:01:05]}  Qxc5 {[%clk 0:01:09]} 25. dxc5 {[%clk 0:01:06]}  b4 {[%clk 0:01:05]} 26. Nd4 {[%clk 0:01:03]}  Bd5 {[%clk 0:00:55]} 27. c6 {[%clk 0:00:39]}  f6 {[%clk 0:00:53]} 28. Nd7 {[%clk 0:00:39]}  Kf7 {[%clk 0:00:44]} 29. c7 {[%clk 0:00:36]}  Nc8 {[%clk 0:00:41]} 30. Nc5 {[%clk 0:00:25]}  a5 {[%clk 0:00:33]} 31. Kf2 {[%clk 0:00:06]}  Ke7 {[%clk 0:00:32]} 32. g4 {[%clk 0:00:05]}  Kd6 {[%clk 0:00:29]} 33. Na4 {[%clk 0:00:06]}  Kxc7 {[%clk 0:00:28]} 34. g5 {[%clk 0:00:03]}  fxg5 {[%clk 0:00:27]} 35. fxg5 {[%clk 0:00:04]}  Nd6 {[%clk 0:00:22]} 36. Nc5 {[%clk 0:00:03]}  Kd8 {[%clk 0:00:06]} 37. Ndxe6+ {[%clk 0:00:02]}  Ke7 {[%clk 0:00:05]} 38. Nf4 {[%clk 0:00:01]}  Nb5 {[%clk 0:00:03]} 39. Ne2 {[%clk 0:00:02]}  Nc3 {[%clk 0:00:01]} 40. Nd4 {[%clk 0:00:01]} 1-0

[Event "January 9 Early 2024"]
[Site "https://www.chess.com"]
[Date "2024.01.11"]
[Round "9"]
[White "Chigaev, Maksim"]
[Black "Materia, Marco"]
[Result "1-0"]
[Board "152"]
[TimeControl "180+1"]
[WhiteFideId "4108116"]
[BlackFideId "45150451"]
[WhiteElo "2973"]
[BlackElo "2825"]
[WhiteTeam "ESP"]
[BlackTeam "FRA"]
[WhiteClock "0:00:05"]
[BlackClock "0:00:03"]

1. c4 {[%clk 0:03:00]}  Nf6 {[%clk 0:02:59]} 2. g3 {[%clk 0:02:59]}  e6 {[%clk 0:02:58]} 3. Bg2 {[%clk 0:02:59]}  d5 {[%clk 0:02:59]} 4. Nf3 {[%clk 0:03:00]}  Be7 {[%clk 0:02:59]} 5. O-O {[%clk 0:02:59]}  O-O {[%clk 0:03:00]} 6. b3 {[%clk 0:02:58]}  c5 {[%clk 0:02:57]} 7. cxd5 {[%clk 0:02:57]}  Nxd5 {[%clk 0:02:56]} 8. Nc3 {[%clk 0:02:57]}  Nc6 {[%clk 0:02:54]} 9. Bb2 {[%clk 0:02:53]}  Bf6 {[%clk 0:02:52]} 10. Qc2 {[%clk 0:02:51]}  b6 {[%clk 0:02:49]} 11. Nxd5 {[%clk 0:02:48]}  Bxb2 {[%clk 0:02:48]} 12. Qxb2 {[%clk 0:02:49]}  exd5 {[%clk 0:02:45]} 13. d4 {[%clk 0:02:50]}  Qf6 {[%clk 0:02:37]} 14. Qd2 {[%clk 0:02:39]}  Be6 {[%clk 0:02:27]} 15. Rfd1 {[%clk 0:02:22]}  Rac8 {[%clk 0:02:24]} 16. dxc5 {[%clk 0:02:15]}  bxc5 {[%clk 0:02:24]} 17. Rac1 {[%clk 0:02:16]}  c4 {[%clk 0:02:14]} 18. Ng5 {[%clk 0:01:54]}  cxb3 {[%clk 0:01:52]} 19. axb3 {[%clk 0:01:48]}  Ne5 {[%clk 0:01:44]} 20. Rxc8 {[%clk 0:01:09]}  Rxc8 {[%clk 0:01:44]} 21. f4 {[%clk 0:01:00]}  Ng4 {[%clk 0:01:24]} 22. h3 {[%clk 0:00:48]}  Nh6 {[%clk 0:01:24]} 23. g4 {[%clk 0:00:40]}  Qe7 {[%clk 0:01:05]} 24. f5 {[%clk 0:00:17]}  Bd7 {[%clk 0:01:05]} 25. Bxd5 {[%clk 0:00:17]}  Bb5 {[%clk 0:00:57]} 26. e4 {[%clk 0:00:17]}  Qe5 {[%clk 0:00:44]} 27. Kg2 {[%clk 0:00:17]}  Be8 {[%clk 0:00:26]} 28. Nf3 {[%clk 0:00:13]}  Qe7 {[%clk 0:00:08]} 29. g5 {[%clk 0:00:13]}  Nxf5 {[%clk 0:00:09]} 30. exf5 {[%clk 0:00:14]}  Kf8 {[%clk 0:00:07]} 31. Re1 {[%clk 0:00:07]}  Qc5 {[%clk 0:00:07]} 32. f6 {[%clk 0:00:03]}  gxf6 {[%clk 0:00:05]} 33. gxf6 {[%clk 0:00:03]}  Qc2 {[%clk 0:00:04]} 34. Qxc2 {[%clk 0:00:03]}  Rxc2+ {[%clk 0:00:05]} 35. Kg3 {[%clk 0:00:04]}  Rc3 {[%clk 0:00:05]} 36. Kf4 {[%clk 0:00:04]}  Rd3 {[%clk 0:00:05]} 37. Bc4 {[%clk 0:00:04]}  Rd6 {[%clk 0:00:05]} 38. Ke5 {[%clk 0:00:03]}  Rb6 {[%clk 0:00:05]} 39. Nd4 {[%clk 0:00:04]}  Bd7 {[%clk 0:00:04]} 40. Rg1 {[%clk 0:00:04]}  Bxh3 {[%clk 0:00:03]} 41. Rg7 {[%clk 0:00:04]}  Be6 {[%clk 0:00:02]} 42. Bxe6 {[%clk 0:00:04]}  fxe6 {[%clk 0:00:03]} 43. Nxe6+ {[%clk 0:00:05]} 1-0

[Event "January 9 Early 2024"]
[Site "https://www.chess.com"]
[Date "2024.01.11"]
[Round "9"]
[White "Barbot, Pierre"]
[Black "Sahin, Sarp"]
[Result "0-1"]
[Board "154"]
[TimeControl "180+1"]
[WhiteFideId "663727"]
[BlackFideId "51605066"]
[WhiteElo "2300"]
[BlackElo "2434"]
[WhiteTeam "FRA"]
[BlackTeam "TUR"]
[WhiteClock "0:00:01"]
[BlackClock "0:00:01"]

1. d4 {[%clk 0:02:56]}  Nf6 {[%clk 0:02:57]} 2. Nf3 {[%clk 0:02:56]}  d5 {[%clk 0:02:53]} 3. Bf4 {[%clk 0:02:56]}  c5 {[%clk 0:02:52]} 4. e3 {[%clk 0:02:56]}  Nc6 {[%clk 0:02:49]} 5. Nbd2 {[%clk 0:02:56]}  e6 {[%clk 0:02:45]} 6. c3 {[%clk 0:02:53]}  cxd4 {[%clk 0:02:39]} 7. exd4 {[%clk 0:02:53]}  Nh5 {[%clk 0:02:38]} 8. Be3 {[%clk 0:02:52]}  Bd6 {[%clk 0:02:34]} 9. Ne5 {[%clk 0:02:52]}  g6 {[%clk 0:02:30]} 10. g4 {[%clk 0:02:52]}  Ng7 {[%clk 0:02:28]} 11. h4 {[%clk 0:02:51]}  h5 {[%clk 0:02:11]} 12. Bg5 {[%clk 0:02:50]}  Be7 {[%clk 0:02:02]} 13. Bb5 {[%clk 0:01:19]}  Bd7 {[%clk 0:01:57]} 14. Nxd7 {[%clk 0:01:18]}  Qxd7 {[%clk 0:01:55]} 15. Qa4 {[%clk 0:01:14]}  a6 {[%clk 0:01:43]} 16. O-O-O {[%clk 0:01:02]}  Bxg5 {[%clk 0:01:32]} 17. hxg5 {[%clk 0:01:01]}  O-O-O {[%clk 0:01:31]} 18. Be2 {[%clk 0:00:51]}  hxg4 {[%clk 0:01:21]} 19. Nb3 {[%clk 0:00:43]}  Qc7 {[%clk 0:01:13]} 20. Kb1 {[%clk 0:00:40]}  g3 {[%clk 0:00:50]} 21. fxg3 {[%clk 0:00:39]}  Nf5 {[%clk 0:00:49]} 22. Nc5 {[%clk 0:00:29]}  Nxg3 {[%clk 0:00:35]} 23. Rxh8 {[%clk 0:00:27]}  Rxh8 {[%clk 0:00:35]} 24. Bxa6 {[%clk 0:00:22]}  bxa6 {[%clk 0:00:32]} 25. Qxa6+ {[%clk 0:00:23]}  Kd8 {[%clk 0:00:24]} 26. c4 {[%clk 0:00:20]}  Rh2 {[%clk 0:00:09]} 27. cxd5 {[%clk 0:00:19]}  exd5 {[%clk 0:00:10]} 28. Re1 {[%clk 0:00:16]}  Ne4 {[%clk 0:00:08]} 29. Nxe4 {[%clk 0:00:07]}  dxe4 {[%clk 0:00:08]} 30. d5 {[%clk 0:00:06]}  Nb8 {[%clk 0:00:03]} 31. Qa4 {[%clk 0:00:06]}  Qd7 {[%clk 0:00:02]} 32. Qb3 {[%clk 0:00:05]}  Qc7 {[%clk 0:00:02]} 33. a4 {[%clk 0:00:05]}  Qc8 {[%clk 0:00:01]} 34. Rxe4 {[%clk 0:00:04]}  Nd7 {[%clk 0:00:01]} 35. Re1 {[%clk 0:00:03]}  Qc7 {[%clk 0:00:01]} 36. Ka1 {[%clk 0:00:02]}  Qd6 {[%clk 0:00:01]} 37. a5 {[%clk 0:00:01]}  Qc5 {[%clk 0:00:01]} 38. Qa4 {[%clk 0:00:01]}  Qa7 {[%clk 0:00:01]} 39. a6 {[%clk 0:00:01]}  Qf2 {[%clk 0:00:01]} 40. Rb1 {[%clk 0:00:01]}  Qc2 {[%clk 0:00:01]} 41. a7 {[%clk 0:00:01]}  Qxa4# {[%clk 0:00:01]} 0-1

[Event "January 9 Early 2024"]
[Site "https://www.chess.com"]
[Date "2024.01.11"]
[Round "9"]
[White "Krzyzanowski, Marcin"]
[Black "Nouali, Mohamed"]
[Result "1-0"]
[Board "155"]
[TimeControl "180+1"]
[WhiteFideId "1132199"]
[BlackFideId "5502462"]
[WhiteElo "2777"]
[BlackElo "2582"]
[WhiteTeam "POL"]
[BlackTeam "TUN"]
[WhiteClock "0:00:06"]
[BlackClock "0:00:03"]

1. Nf3 {[%clk 0:03:00]}  Nf6 {[%clk 0:02:59]} 2. g3 {[%clk 0:03:01]}  g6 {[%clk 0:02:59]} 3. Bg2 {[%clk 0:03:02]}  Bg7 {[%clk 0:03:00]} 4. O-O {[%clk 0:03:02]}  O-O {[%clk 0:03:01]} 5. c4 {[%clk 0:03:03]}  d6 {[%clk 0:03:01]} 6. d4 {[%clk 0:03:03]}  c5 {[%clk 0:03:00]} 7. Nc3 {[%clk 0:03:01]}  cxd4 {[%clk 0:03:00]} 8. Nxd4 {[%clk 0:03:00]}  Nc6 {[%clk 0:03:01]} 9. Bg5 {[%clk 0:02:41]}  Nxd4 {[%clk 0:02:47]} 10. Qxd4 {[%clk 0:02:40]}  Be6 {[%clk 0:02:18]} 11. Qd3 {[%clk 0:02:27]}  Nd7 {[%clk 0:02:18]} 12. b3 {[%clk 0:02:23]}  Qa5 {[%clk 0:02:10]} 13. Bd2 {[%clk 0:02:21]}  Qh5 {[%clk 0:02:07]} 14. Rad1 {[%clk 0:02:09]}  Bh3 {[%clk 0:01:30]} 15. Nd5 {[%clk 0:02:00]}  Ne5 {[%clk 0:01:18]} 16. Qe4 {[%clk 0:01:29]}  f5 {[%clk 0:00:40]} 17. Nxe7+ {[%clk 0:01:00]}  Kh8 {[%clk 0:00:38]} 18. Qh4 {[%clk 0:00:59]}  Qxh4 {[%clk 0:00:32]} 19. gxh4 {[%clk 0:01:00]}  Bxg2 {[%clk 0:00:28]} 20. Kxg2 {[%clk 0:01:01]}  Rae8 {[%clk 0:00:20]} 21. Nd5 {[%clk 0:01:01]}  Ng4 {[%clk 0:00:07]} 22. Bb4 {[%clk 0:00:59]}  Rxe2 {[%clk 0:00:05]} 23. Bxd6 {[%clk 0:00:58]}  Rfe8 {[%clk 0:00:06]} 24. a4 {[%clk 0:00:47]}  Rb2 {[%clk 0:00:05]} 25. Rd3 {[%clk 0:00:43]}  Ree2 {[%clk 0:00:05]} 26. Bg3 {[%clk 0:00:44]}  Be5 {[%clk 0:00:04]} 27. Nc3 {[%clk 0:00:27]}  Bxc3 {[%clk 0:00:02]} 28. Rxc3 {[%clk 0:00:26]}  h5 {[%clk 0:00:03]} 29. Kf3 {[%clk 0:00:20]}  Kh7 {[%clk 0:00:01]} 30. Rd3 {[%clk 0:00:19]}  Rec2 {[%clk 0:00:02]} 31. Rd7+ {[%clk 0:00:19]}  Kg8 {[%clk 0:00:02]} 32. Re1 {[%clk 0:00:14]}  Rc3+ {[%clk 0:00:03]} 33. Kf4 {[%clk 0:00:13]}  Nf6 {[%clk 0:00:02]} 34. Rxb7 {[%clk 0:00:12]}  Ne4 {[%clk 0:00:02]} 35. f3 {[%clk 0:00:11]}  Rbxb3 {[%clk 0:00:01]} 36. fxe4 {[%clk 0:00:10]}  Rf3+ {[%clk 0:00:02]} 37. Kg5 {[%clk 0:00:11]}  fxe4 {[%clk 0:00:01]} 38. Rxe4 {[%clk 0:00:11]}  Rbe3 {[%clk 0:00:02]} 39. Rxe3 {[%clk 0:00:11]}  Rxe3 {[%clk 0:00:03]} 40. Rxa7 {[%clk 0:00:10]}  Re4 {[%clk 0:00:02]} 41. Kxg6 {[%clk 0:00:09]}  Re6+ {[%clk 0:00:02]} 42. Kf5 {[%clk 0:00:09]}  Rc6 {[%clk 0:00:03]} 43. Be5 {[%clk 0:00:06]} 1-0

[Event "January 9 Early 2024"]
[Site "https://www.chess.com"]
[Date "2024.01.11"]
[Round "9"]
[White "Tymrakiewicz, Rafal"]
[Black "Perez Gormaz, Matias"]
[Result "0-1"]
[Board "156"]
[TimeControl "180+1"]
[WhiteFideId "1108832"]
[BlackFideId "3406342"]
[WhiteElo "2389"]
[BlackElo "2646"]
[WhiteTeam "POL"]
[BlackTeam "CHI"]
[WhiteClock "0:00:01"]
[BlackClock "0:00:04"]

1. d4 {[%clk 0:02:58]}  d5 {[%clk 0:02:58]} 2. Bg5 {[%clk 0:02:57]}  Nf6 {[%clk 0:02:50]} 3. e3 {[%clk 0:02:57]}  Ne4 {[%clk 0:02:43]} 4. Bf4 {[%clk 0:02:57]}  Bf5 {[%clk 0:02:42]} 5. Bd3 {[%clk 0:02:54]}  e6 {[%clk 0:02:42]} 6. f3 {[%clk 0:02:50]}  Nd6 {[%clk 0:02:36]} 7. Ne2 {[%clk 0:02:39]}  Be7 {[%clk 0:02:33]} 8. O-O {[%clk 0:02:34]}  O-O {[%clk 0:02:27]} 9. Nbc3 {[%clk 0:02:32]}  Bxd3 {[%clk 0:02:25]} 10. Qxd3 {[%clk 0:02:30]}  Nd7 {[%clk 0:02:25]} 11. e4 {[%clk 0:02:29]}  c6 {[%clk 0:02:22]} 12. Bxd6 {[%clk 0:02:21]}  Bxd6 {[%clk 0:02:22]} 13. e5 {[%clk 0:02:21]}  Be7 {[%clk 0:02:16]} 14. Nd1 {[%clk 0:02:15]}  c5 {[%clk 0:02:15]} 15. c3 {[%clk 0:02:15]}  Qb6 {[%clk 0:02:09]} 16. f4 {[%clk 0:02:10]}  f6 {[%clk 0:02:10]} 17. exf6 {[%clk 0:02:00]}  Bxf6 {[%clk 0:02:11]} 18. Ne3 {[%clk 0:01:45]}  Rac8 {[%clk 0:01:53]} 19. Rab1 {[%clk 0:01:34]}  cxd4 {[%clk 0:01:48]} 20. cxd4 {[%clk 0:01:27]}  Nb8 {[%clk 0:01:27]} 21. Ng4 {[%clk 0:01:22]}  Nc6 {[%clk 0:01:27]} 22. Nxf6+ {[%clk 0:01:22]}  Rxf6 {[%clk 0:01:28]} 23. Rfc1 {[%clk 0:01:14]}  Rf7 {[%clk 0:01:23]} 24. Rc2 {[%clk 0:01:04]}  Rfc7 {[%clk 0:01:22]} 25. Rd2 {[%clk 0:00:59]}  Nb4 {[%clk 0:01:13]} 26. Qb3 {[%clk 0:00:56]}  Rc2 {[%clk 0:00:53]} 27. Rbd1 {[%clk 0:00:46]}  R2c4 {[%clk 0:00:28]} 28. a3 {[%clk 0:00:38]}  Nc6 {[%clk 0:00:28]} 29. Qxb6 {[%clk 0:00:38]}  axb6 {[%clk 0:00:28]} 30. Kf2 {[%clk 0:00:37]}  Na5 {[%clk 0:00:27]} 31. Nc3 {[%clk 0:00:33]}  Kf7 {[%clk 0:00:24]} 32. Re2 {[%clk 0:00:32]}  g6 {[%clk 0:00:22]} 33. Nb5 {[%clk 0:00:28]}  R8c6 {[%clk 0:00:18]} 34. Rde1 {[%clk 0:00:27]}  Nb3 {[%clk 0:00:08]} 35. Rd1 {[%clk 0:00:23]}  Ke7 {[%clk 0:00:06]} 36. g3 {[%clk 0:00:20]}  Kd7 {[%clk 0:00:06]} 37. Re3 {[%clk 0:00:18]}  Rc2+ {[%clk 0:00:06]} 38. Kf3 {[%clk 0:00:13]}  Rxb2 {[%clk 0:00:06]} 39. Nc3 {[%clk 0:00:05]}  Nd2+ {[%clk 0:00:06]} 40. Kg4 {[%clk 0:00:04]}  Nc4 {[%clk 0:00:04]} 41. Red3 {[%clk 0:00:03]}  Rxh2 {[%clk 0:00:04]} 42. Rb1 {[%clk 0:00:01]}  Nd6 {[%clk 0:00:05]} 43. Kg5 {[%clk 0:00:01]}  Rxc3 {[%clk 0:00:04]} 0-1

[Event "January 9 Early 2024"]
[Site "https://www.chess.com"]
[Date "2024.01.11"]
[Round "9"]
[White "Filgueira, Hernan"]
[Black "Albuquerque Junior,Wellington S."]
[Result "1-0"]
[Board "157"]
[TimeControl "180+1"]
[WhiteFideId "101770"]
[BlackFideId "2151480"]
[WhiteElo "2558"]
[BlackElo "2381"]
[WhiteTeam "ARG"]
[BlackTeam "BRA"]
[WhiteClock "0:00:16"]
[BlackClock "0:00:05"]

1. d4 {[%clk 0:02:57]}  Nf6 {[%clk 0:03:00]} 2. Nf3 {[%clk 0:02:58]}  c5 {[%clk 0:02:58]} 3. d5 {[%clk 0:02:57]}  g6 {[%clk 0:02:58]} 4. Nc3 {[%clk 0:02:54]}  d6 {[%clk 0:02:59]} 5. e4 {[%clk 0:02:55]}  Bg7 {[%clk 0:02:59]} 6. Be2 {[%clk 0:02:51]}  O-O {[%clk 0:02:59]} 7. O-O {[%clk 0:02:52]}  Na6 {[%clk 0:03:00]} 8. Nd2 {[%clk 0:02:52]}  Nc7 {[%clk 0:03:00]} 9. a4 {[%clk 0:02:51]}  Rb8 {[%clk 0:03:00]} 10. Nc4 {[%clk 0:02:50]}  b6 {[%clk 0:02:58]} 11. Bg5 {[%clk 0:02:43]}  a6 {[%clk 0:02:57]} 12. f3 {[%clk 0:02:30]}  b5 {[%clk 0:02:46]} 13. Na5 {[%clk 0:02:25]}  Bd7 {[%clk 0:02:45]} 14. axb5 {[%clk 0:02:24]}  axb5 {[%clk 0:02:37]} 15. Qd2 {[%clk 0:02:18]}  b4 {[%clk 0:02:32]} 16. Nd1 {[%clk 0:02:16]}  Nb5 {[%clk 0:02:31]} 17. Ne3 {[%clk 0:01:45]}  h6 {[%clk 0:02:18]} 18. Bh4 {[%clk 0:01:43]}  Nh5 {[%clk 0:02:11]} 19. Nac4 {[%clk 0:01:38]}  Nf4 {[%clk 0:01:58]} 20. Bd1 {[%clk 0:01:27]}  Kh7 {[%clk 0:01:37]} 21. Bg3 {[%clk 0:01:26]}  Nh5 {[%clk 0:01:37]} 22. Bf2 {[%clk 0:01:25]}  Ra8 {[%clk 0:01:24]} 23. Rxa8 {[%clk 0:01:20]}  Qxa8 {[%clk 0:01:23]} 24. f4 {[%clk 0:01:12]}  Nxf4 {[%clk 0:01:13]} 25. Bh4 {[%clk 0:01:06]}  g5 {[%clk 0:01:08]} 26. Bg3 {[%clk 0:01:06]}  Be5 {[%clk 0:00:49]} 27. Ng4 {[%clk 0:00:56]}  f6 {[%clk 0:00:42]} 28. h4 {[%clk 0:00:50]}  Rg8 {[%clk 0:00:39]} 29. Ngxe5 {[%clk 0:00:43]}  fxe5 {[%clk 0:00:36]} 30. hxg5 {[%clk 0:00:43]}  Rxg5 {[%clk 0:00:22]} 31. Bxf4 {[%clk 0:00:43]}  exf4 {[%clk 0:00:23]} 32. Qxf4 {[%clk 0:00:43]}  Qg8 {[%clk 0:00:23]} 33. Rf2 {[%clk 0:00:37]}  Nd4 {[%clk 0:00:18]} 34. c3 {[%clk 0:00:34]}  bxc3 {[%clk 0:00:17]} 35. bxc3 {[%clk 0:00:34]}  Nb5 {[%clk 0:00:18]} 36. e5 {[%clk 0:00:33]}  Nxc3 {[%clk 0:00:16]} 37. Bc2+ {[%clk 0:00:33]}  Kh8 {[%clk 0:00:14]} 38. exd6 {[%clk 0:00:33]}  exd6 {[%clk 0:00:08]} 39. Nxd6 {[%clk 0:00:32]}  Rxg2+ {[%clk 0:00:04]} 40. Rxg2 {[%clk 0:00:28]}  Ne2+ {[%clk 0:00:05]} 41. Kf2 {[%clk 0:00:27]}  Nxf4 {[%clk 0:00:05]} 42. Rxg8+ {[%clk 0:00:25]}  Kxg8 {[%clk 0:00:06]} 43. Be4 {[%clk 0:00:25]}  Kg7 {[%clk 0:00:06]} 44. Nb7 {[%clk 0:00:24]}  c4 {[%clk 0:00:05]} 45. Nc5 {[%clk 0:00:24]}  Bb5 {[%clk 0:00:05]} 46. d6 {[%clk 0:00:24]}  Kf6 {[%clk 0:00:05]} 47. Ke3 {[%clk 0:00:20]}  Ne6 {[%clk 0:00:05]} 48. d7 {[%clk 0:00:16]} 1-0

[Event "January 9 Early 2024"]
[Site "https://www.chess.com"]
[Date "2024.01.11"]
[Round "9"]
[White "De Sousa, Daniel Aguiar"]
[Black "Van Kooten, Luuk"]
[Result "0-1"]
[Board "158"]
[TimeControl "180+1"]
[WhiteFideId "44736797"]
[BlackFideId "1006533"]
[WhiteElo "2048"]
[BlackElo "2262"]
[WhiteTeam "BRA"]
[BlackTeam "NED"]
[WhiteClock "0:00:12"]
[BlackClock "0:00:15"]

1. d4 {[%clk 0:03:00]}  Nf6 {[%clk 0:02:59]} 2. Nf3 {[%clk 0:03:00]}  e6 {[%clk 0:02:58]} 3. e3 {[%clk 0:03:00]}  d5 {[%clk 0:02:57]} 4. Bd3 {[%clk 0:03:00]}  Be7 {[%clk 0:02:56]} 5. Nbd2 {[%clk 0:03:00]}  O-O {[%clk 0:02:56]} 6. b3 {[%clk 0:03:00]}  c5 {[%clk 0:02:56]} 7. Bb2 {[%clk 0:03:01]}  b6 {[%clk 0:02:56]} 8. O-O {[%clk 0:02:59]}  Nbd7 {[%clk 0:02:55]} 9. Ne5 {[%clk 0:02:58]}  Nxe5 {[%clk 0:02:53]} 10. dxe5 {[%clk 0:02:58]}  Nd7 {[%clk 0:02:53]} 11. f4 {[%clk 0:02:58]}  f5 {[%clk 0:02:51]} 12. g4 {[%clk 0:02:50]}  Bb7 {[%clk 0:02:40]} 13. gxf5 {[%clk 0:02:48]}  exf5 {[%clk 0:02:40]} 14. Qh5 {[%clk 0:02:48]}  g6 {[%clk 0:02:39]} 15. Qh6 {[%clk 0:02:40]}  Re8 {[%clk 0:02:17]} 16. Nf3 {[%clk 0:02:14]}  Bf8 {[%clk 0:02:16]} 17. Qh3 {[%clk 0:02:13]}  Bg7 {[%clk 0:02:12]} 18. Kf2 {[%clk 0:01:54]}  Nf8 {[%clk 0:02:10]} 19. Ng5 {[%clk 0:01:40]}  Re7 {[%clk 0:01:59]} 20. Rg1 {[%clk 0:01:32]}  a6 {[%clk 0:01:55]} 21. Rad1 {[%clk 0:01:13]}  b5 {[%clk 0:01:54]} 22. Ba1 {[%clk 0:01:12]}  Qa5 {[%clk 0:01:51]} 23. e6 {[%clk 0:01:10]}  Qxa2 {[%clk 0:01:41]} 24. Bxg7 {[%clk 0:01:06]}  Rxg7 {[%clk 0:01:41]} 25. Nf7 {[%clk 0:00:58]}  Nxe6 {[%clk 0:01:37]} 26. Nh6+ {[%clk 0:00:53]}  Kh8 {[%clk 0:01:36]} 27. Nxf5 {[%clk 0:00:47]}  gxf5 {[%clk 0:01:20]} 28. Bxf5 {[%clk 0:00:46]}  Nf8 {[%clk 0:00:46]} 29. Rxg7 {[%clk 0:00:44]}  Kxg7 {[%clk 0:00:46]} 30. Rg1+ {[%clk 0:00:42]}  Kh8 {[%clk 0:00:39]} 31. Qg3 {[%clk 0:00:41]}  Ng6 {[%clk 0:00:33]} 32. Bxg6 {[%clk 0:00:41]}  Rg8 {[%clk 0:00:31]} 33. Qh4 {[%clk 0:00:23]}  Rxg6 {[%clk 0:00:31]} 34. Rxg6 {[%clk 0:00:22]}  Qxc2+ {[%clk 0:00:31]} 35. Kf1 {[%clk 0:00:18]}  Qxg6 {[%clk 0:00:32]} 36. Qd8+ {[%clk 0:00:18]}  Kg7 {[%clk 0:00:31]} 37. Qc7+ {[%clk 0:00:14]}  Qf7 {[%clk 0:00:31]} 38. Qe5+ {[%clk 0:00:15]}  Kf8 {[%clk 0:00:30]} 39. Qb8+ {[%clk 0:00:15]}  Kg7 {[%clk 0:00:26]} 40. Qe5+ {[%clk 0:00:15]}  Qf6 {[%clk 0:00:25]} 41. Qc7+ {[%clk 0:00:13]}  Kg6 {[%clk 0:00:24]} 42. Qxb7 {[%clk 0:00:13]}  c4 {[%clk 0:00:23]} 43. Qxd5 {[%clk 0:00:13]}  c3 {[%clk 0:00:23]} 44. Qd3+ {[%clk 0:00:12]}  Kg7 {[%clk 0:00:22]} 45. e4 {[%clk 0:00:12]}  Qxf4+ {[%clk 0:00:21]} 46. Kg2 {[%clk 0:00:11]}  Qg4+ {[%clk 0:00:19]} 47. Kf2 {[%clk 0:00:12]}  Qf4+ {[%clk 0:00:16]} 48. Kg2 {[%clk 0:00:12]}  Qd2+ {[%clk 0:00:15]} 0-1

[Event "January 9 Early 2024"]
[Site "https://www.chess.com"]
[Date "2024.01.11"]
[Round "9"]
[White "Radjabov, Teimour"]
[Black "Kukhmazov, Arsen"]
[Result "1-0"]
[Board "159"]
[TimeControl "180+1"]
[WhiteFideId "13400924"]
[BlackFideId "24108260"]
[WhiteElo "3036"]
[BlackElo "2915"]
[WhiteTeam "AZE"]
[BlackTeam "FID"]
[WhiteClock "0:00:02"]
[BlackClock "0:00:03"]

1. Nf3 {[%clk 0:02:51]}  d5 {[%clk 0:03:00]} 2. d3 {[%clk 0:02:48]}  Nf6 {[%clk 0:02:59]} 3. g3 {[%clk 0:02:45]}  g6 {[%clk 0:02:57]} 4. Bg2 {[%clk 0:02:45]}  Bg7 {[%clk 0:02:57]} 5. O-O {[%clk 0:02:45]}  O-O {[%clk 0:02:57]} 6. c4 {[%clk 0:02:46]}  c6 {[%clk 0:02:42]} 7. Qc2 {[%clk 0:02:27]}  Re8 {[%clk 0:02:37]} 8. Nc3 {[%clk 0:02:18]}  d4 {[%clk 0:02:25]} 9. Na4 {[%clk 0:02:15]}  e5 {[%clk 0:02:19]} 10. Nd2 {[%clk 0:01:50]}  Bf5 {[%clk 0:02:13]} 11. Nc5 {[%clk 0:01:46]}  Qc8 {[%clk 0:02:09]} 12. Nde4 {[%clk 0:01:42]}  Nxe4 {[%clk 0:02:09]} 13. Nxe4 {[%clk 0:01:42]}  Qc7 {[%clk 0:01:55]} 14. b4 {[%clk 0:01:41]}  a5 {[%clk 0:01:40]} 15. bxa5 {[%clk 0:01:38]}  Rxa5 {[%clk 0:01:38]} 16. Bd2 {[%clk 0:01:38]}  Ra7 {[%clk 0:01:32]} 17. a4 {[%clk 0:01:30]}  Nd7 {[%clk 0:01:11]} 18. a5 {[%clk 0:01:28]}  h6 {[%clk 0:00:58]} 19. Rfb1 {[%clk 0:01:16]}  Rea8 {[%clk 0:00:58]} 20. h3 {[%clk 0:01:01]}  Be6 {[%clk 0:00:57]} 21. g4 {[%clk 0:00:46]}  Kh7 {[%clk 0:00:43]} 22. Kh1 {[%clk 0:00:45]}  f5 {[%clk 0:00:29]} 23. gxf5 {[%clk 0:00:44]}  gxf5 {[%clk 0:00:29]} 24. Ng3 {[%clk 0:00:45]}  Nf6 {[%clk 0:00:30]} 25. Rg1 {[%clk 0:00:42]}  f4 {[%clk 0:00:28]} 26. Ne4 {[%clk 0:00:41]}  Bf5 {[%clk 0:00:29]} 27. Kh2 {[%clk 0:00:30]}  Rg8 {[%clk 0:00:25]} 28. Rab1 {[%clk 0:00:28]}  Qd7 {[%clk 0:00:20]} 29. Qb3 {[%clk 0:00:20]}  Nxe4 {[%clk 0:00:18]} 30. Bxe4 {[%clk 0:00:19]}  Bxe4 {[%clk 0:00:19]} 31. dxe4 {[%clk 0:00:19]}  Rga8 {[%clk 0:00:11]} 32. Rg2 {[%clk 0:00:18]}  Bf6 {[%clk 0:00:11]} 33. Rbg1 {[%clk 0:00:17]}  Rf8 {[%clk 0:00:10]} 34. Qf3 {[%clk 0:00:11]}  Raa8 {[%clk 0:00:08]} 35. Qh5 {[%clk 0:00:10]}  Rg8 {[%clk 0:00:03]} 36. Rg6 {[%clk 0:00:08]}  Bg7 {[%clk 0:00:04]} 37. Bb4 {[%clk 0:00:05]}  Rae8 {[%clk 0:00:04]} 38. Rd6 {[%clk 0:00:03]}  Qc7 {[%clk 0:00:03]} 39. Rgg6 {[%clk 0:00:04]}  Kh8 {[%clk 0:00:02]} 40. Rxh6+ {[%clk 0:00:03]}  Bxh6 {[%clk 0:00:03]} 41. Rxh6+ {[%clk 0:00:04]}  Kg7 {[%clk 0:00:03]} 42. Qg6# {[%clk 0:00:02]} 1-0